{"text_format":"1","workbook":"xlsx","n_sheets":2,"sheets":["OSNOVNA TABELA","PREGLED"],"not_rendered":{"charts":3,"images":1,"macros":1,"external_links":0,"defined_names":1,"comments":0,"pivot_tables":0},"unopened":[],"bounds":{"document_bytes":16777216,"sheet_cells":100000,"rows_first":2000,"rows_last":500,"rows_between":2000,"halvings":0,"cell_chars":16384,"cell_head_chars":4096},"cells_cut":0,"cells_raw":0,"read":"whole","date_system":"1900"}

{"sheet":"OSNOVNA TABELA","index":0,"n_rows":81,"n_cols":20,"rows_kept":81,"cut":false,"hidden":false,"merged":[[1,6,1,17],[0,4,0,11]]}
[null,null,null,null,"СТРУКТУРА СРЕДСТАВА ЗА УНАПРЕЂЕЊЕ БЕЗБЈЕДНОСТИ САОБРАЋАЈА"]
[null,"Групе","Редни број пројекта","Назив пројекта","Планирани износ","Одобрено","Реализација по мјесецима",null,null,null,null,null,null,null,null,null,null,null,"Реализација","Нереализовано"]
[null,null,null,null,null,null,"Јануар","Фебруар","Март","Април","Мај","Јун","Јул","Август","Септембар","Октобар","Новембар","Децембар","Укупно"]
[null,null,null,null,{"$f":"Savjet[[#Totals],[Планирани износ]]+Putnainf[[#Totals],[Планирани износ]]+Table4[[#Totals],[Планирани износ]]+Table5[[#Totals],[Планирани износ]]+Table6[[#Totals],[Планирани износ]]+Table7[[#Totals],[Планирани износ]]","v":0},{"$f":"Savjet[[#Totals],[Одобрено]]+Putnainf[[#Totals],[Одобрено]]+Table4[[#Totals],[Одобрено]]+Table5[[#Totals],[Одобрено]]+Table6[[#Totals],[Одобрено]]+Table7[[#Totals],[Одобрено]]","v":0},{"$f":"Savjet[[#Totals],[Јануар]]+Putnainf[[#Totals],[Јануар]]+Table4[[#Totals],[Јануар]]+Table5[[#Totals],[Јануар]]+Table6[[#Totals],[Јануар]]+Table7[[#Totals],[Јануар]]","v":0},{"$f":"Savjet[[#Totals],[Фебруар]]+Putnainf[[#Totals],[Фебруар]]+Table4[[#Totals],[Фебруар]]+Table5[[#Totals],[Фебруар]]+Table6[[#Totals],[Фебруар]]+Table7[[#Totals],[Фебруар]]","v":0},{"$f":"Savjet[[#Totals],[Март]]+Putnainf[[#Totals],[Март]]+Table4[[#Totals],[Март]]+Table5[[#Totals],[Март]]+Table6[[#Totals],[Март]]+Table7[[#Totals],[Март]]","v":0},{"$f":"Savjet[[#Totals],[Април]]+Putnainf[[#Totals],[Април]]+Table4[[#Totals],[Април]]+Table5[[#Totals],[Април]]+Table6[[#Totals],[Април]]+Table7[[#Totals],[Април]]","v":0},{"$f":"Savjet[[#Totals],[Мај]]+Putnainf[[#Totals],[Мај]]+Table4[[#Totals],[Мај]]+Table5[[#Totals],[Мај]]+Table6[[#Totals],[Мај]]+Table7[[#Totals],[Мај]]","v":0},{"$f":"Savjet[[#Totals],[Јун]]+Putnainf[[#Totals],[Јун]]+Table4[[#Totals],[Јун]]+Table5[[#Totals],[Јун]]+Table6[[#Totals],[Јун]]+Table7[[#Totals],[Јун]]","v":0},{"$f":"Savjet[[#Totals],[Јул]]+Putnainf[[#Totals],[Јул]]+Table4[[#Totals],[Јул]]+Table5[[#Totals],[Јул]]+Table6[[#Totals],[Јул]]+Table7[[#Totals],[Јул]]","v":0},{"$f":"Savjet[[#Totals],[Август]]+Putnainf[[#Totals],[Август]]+Table4[[#Totals],[Август]]+Table5[[#Totals],[Август]]+Table6[[#Totals],[Август]]+Table7[[#Totals],[Август]]","v":0},{"$f":"Savjet[[#Totals],[Септембар]]+Putnainf[[#Totals],[Септембар]]+Table4[[#Totals],[Септембар]]+Table5[[#Totals],[Септембар]]+Table6[[#Totals],[Септембар]]+Table7[[#Totals],[Септембар]]","v":0},{"$f":"Savjet[[#Totals],[Октобар]]+Putnainf[[#Totals],[Октобар]]+Table4[[#Totals],[Октобар]]+Table5[[#Totals],[Октобар]]+Table6[[#Totals],[Октобар]]+Table7[[#Totals],[Октобар]]","v":0},{"$f":"Savjet[[#Totals],[Новембар]]+Putnainf[[#Totals],[Новембар]]+Table4[[#Totals],[Новембар]]+Table5[[#Totals],[Новембар]]+Table6[[#Totals],[Новембар]]+Table7[[#Totals],[Новембар]]","v":0},{"$f":"Savjet[[#Totals],[Децембар]]+Putnainf[[#Totals],[Децембар]]+Table4[[#Totals],[Децембар]]+Table5[[#Totals],[Децембар]]+Table6[[#Totals],[Децембар]]+Table7[[#Totals],[Децембар]]","v":0},{"$f":"Savjet[[#Totals],[Реализација]]+Putnainf[[#Totals],[Реализација]]+Table4[[#Totals],[Реализација]]+Table5[[#Totals],[Реализација]]+Table6[[#Totals],[Реализација]]+Table7[[#Totals],[Реализација]]","v":0},{"$f":"Savjet[[#Totals],[Нереализовано]]+Putnainf[[#Totals],[Нереализовано]]+Table4[[#Totals],[Нереализовано]]+Table5[[#Totals],[Нереализовано]]+Table6[[#Totals],[Нереализовано]]+Table7[[#Totals],[Нереализовано]]","v":0}]
["A","Рад савјета за безбједност саобраћаја","Редни број пројекта","Назив пројекта","Планирани износ","Одобрено","Јануар","Фебруар","Март","Април","Мај","Јун","Јул","Август","Септембар","Октобар","Новембар","Децембар","Реализација","Нереализовано"]
["A-1","Накнада за чланове Савета за базбједност саобраћаја оји нису запослени у ЈЛС",null,null,null,null,null,null,null,null,null,null,null,null,null,null,null,null,{"$f":"SUM(G6:R6)","v":0},{"$f":"F6-S6","v":0}]
["A-2","Накнада за чланове Савјета за безбједност саобраћаја, који су запослени у управи ЈЛС",null,null,null,null,null,null,null,null,null,null,null,null,null,null,null,null,{"$f":"SUM(G7:R7)","v":0},{"$f":"F7-S7","v":0}]
["A-3","Стручно усавршавање чланова савјета",null,null,null,null,null,null,null,null,null,null,null,null,null,null,null,null,0,0]
["A-4","Службена путовања у земљи и иностранству чланова савјета са циљем унапријеђења безбједности саобраћаја",null,null,null,null,null,null,null,null,null,null,null,null,null,null,null,null,0,0]
["Total",null,null,null,{"$f":"SUBTOTAL(109,Savjet[Планирани износ])","v":0},{"$f":"SUBTOTAL(109,Savjet[Одобрено])","v":0},{"$f":"SUBTOTAL(109,Savjet[Јануар])","v":0},{"$f":"SUBTOTAL(109,Savjet[Фебруар])","v":0},{"$f":"SUBTOTAL(109,Savjet[Март])","v":0},{"$f":"SUBTOTAL(109,Savjet[Април])","v":0},{"$f":"SUBTOTAL(109,Savjet[Мај])","v":0},{"$f":"SUBTOTAL(109,Savjet[Јун])","v":0},{"$f":"SUBTOTAL(109,Savjet[Јул])","v":0},{"$f":"SUBTOTAL(109,Savjet[Август])","v":0},{"$f":"SUBTOTAL(109,Savjet[Септембар])","v":0},{"$f":"SUBTOTAL(109,Savjet[Октобар])","v":0},{"$f":"SUBTOTAL(109,Savjet[Новембар])","v":0},{"$f":"SUBTOTAL(109,Savjet[Децембар])","v":0},{"$f":"SUBTOTAL(109,Savjet[Реализација])","v":0},{"$f":"SUBTOTAL(109,Savjet[Нереализовано])","v":0}]
["Б","Унапређење путне инфраструктуре ","Редни број пројекта","Назив пројекта","Планирани износ","Одобрено","Јануар","Фебруар","Март","Април","Мај","Јун","Јул","Август","Септембар","Октобар","Новембар","Децембар","Реализација","Нереализовано"]
["Б1-1","Анализа стања безбедности саобраћаја на путевима и улицама на територији општине",null,null,null,null,null,null,null,null,null,null,null,null,null,null,null,null,{"$f":"SUM(G12:R12)","v":0},{"$f":"F12-S12","v":0}]
["Б1-2","Израда пројекта саобраћајне сигнализације",null,null,null,null,null,null,null,null,null,null,null,null,null,null,null,null,{"$f":"SUM(G13:R13)","v":0},{"$f":"F13-S13","v":0}]
["Б1-3","Набавка и постављање вертикалне сигнализације",null,null,null,null,null,null,null,null,null,null,null,null,null,null,null,null,{"$f":"SUM(G14:R14)","v":0},{"$f":"F14-S14","v":0}]
["Б1-4","Обиљежавање хоризонталне сигнализације",null,null,null,null,null,null,null,null,null,null,null,null,null,null,null,null,{"$f":"SUM(G15:R15)","v":0},0]
["Б1-5","Идентификација и рангирање опасних места на путевима и улицама",null,null,null,null,null,null,null,null,null,null,null,null,null,null,null,null,0,0]
["Б1-6","Пројекат санације опасних места",null,null,null,null,null,null,null,null,null,null,null,null,null,null,null,null,0,0]
["Б1-7","Санација опасних мјеста",null,null,null,null,null,null,null,null,null,null,null,null,null,null,null,null,0,0]
["Б1-8","Израда пројеката и уређење зона школа",null,null,null,null,null,null,null,null,null,null,null,null,null,null,null,null,0,0]
["Б1-9","Изградња разделних острва између коловозних трака на путевима већег ранга где долази до судара из супротних смерова; ",null,null,null,null,null,null,null,null,null,null,null,null,null,null,null,null,0,0]
["Б1-10","Постављање нове саобраћајне сигнализације и опреме-физичке препреке, у циљу смањивања брзина кретања возила и сл; ",null,null,null,null,null,null,null,null,null,null,null,null,null,null,null,null,0,0]
["Б1-11","Постављање вертикланих избочина на путу",null,null,null,null,null,null,null,null,null,null,null,null,null,null,null,null,{"$f":"SUM(G22:R22)","v":0},{"$f":"F22-S22","v":0}]
["Б1-12","Уређење заштитног појаса поред пута на локацијама где долази до слетања возила са пута).",null,null,null,null,null,null,null,null,null,null,null,null,null,null,null,null,0,0]
["Б1-13","Пројекат централизованог управљања саобраћајним токовима",null,null,null,null,null,null,null,null,null,null,null,null,null,null,null,null,0,0]
["Б1-14","Израда пројеката за утврђивање режима саобраћаја на уличној и путној мрежи",null,null,null,null,null,null,null,null,null,null,null,null,null,null,null,null,0,0]
["Б1-15","Израда пројекта Катастра саобраћајне сигнализације на територији општине",null,null,null,null,null,null,null,null,null,null,null,null,null,null,null,null,0,0]
["Б1-16","Опремање саобраћајних зона у којима се налазе школе додатном потребном саобраћајном опремом",null,null,null,null,null,null,null,null,null,null,null,null,null,null,null,null,0,0]
["Б1-17","Набавка опреме за видео надзор саобраћајних токова на саобраћајној мрежи",null,null,null,null,null,null,null,null,null,null,null,null,null,null,null,null,0,0]
["Б1-18","Стратегија функционисања дистрибуције робе у саобраћајном систему",null,null,null,null,null,null,null,null,null,null,null,null,null,null,null,null,0,0]
["Б1-19","Израда базе податка о саобраћајним незгодама",null,null,null,null,null,null,null,null,null,null,null,null,null,null,null,null,{"$f":"SUM(G30:R30)","v":0},{"$f":"F30-S30","v":0}]
["Б1-20","Припрема саобраћајне инфраструктуре за полагање возачког испита",null,null,null,null,null,null,null,null,null,null,null,null,null,null,null,null,0,0]
["Total",null,null,null,{"$f":"SUBTOTAL(109,Putnainf[Планирани износ])","v":0},{"$f":"SUBTOTAL(109,Putnainf[Одобрено])","v":0},{"$f":"SUBTOTAL(109,Putnainf[Јануар])","v":0},{"$f":"SUBTOTAL(109,Putnainf[Фебруар])","v":0},{"$f":"SUBTOTAL(109,Putnainf[Март])","v":0},{"$f":"SUBTOTAL(109,Putnainf[Април])","v":0},{"$f":"SUBTOTAL(109,Putnainf[Мај])","v":0},{"$f":"SUBTOTAL(109,Putnainf[Јун])","v":0},{"$f":"SUBTOTAL(109,Putnainf[Јул])","v":0},{"$f":"SUBTOTAL(109,Putnainf[Август])","v":0},{"$f":"SUBTOTAL(109,Putnainf[Септембар])","v":0},{"$f":"SUBTOTAL(109,Putnainf[Октобар])","v":0},{"$f":"SUBTOTAL(109,Putnainf[Новембар])","v":0},{"$f":"SUBTOTAL(109,Putnainf[Децембар])","v":0},{"$f":"SUBTOTAL(109,Putnainf[Реализација])","v":0},{"$f":"SUBTOTAL(109,Putnainf[Нереализовано])","v":0}]
["Б2","Поправљање саобраћајне инфраструктуре","Редни број пројекта","Назив пројекта","Планирани износ","Одобрено","Јануар","Фебруар","Март","Април","Мај","Јун","Јул","Август","Септембар","Октобар","Новембар","Децембар","Реализација","Нереализовано"]
["Б2-1","Поправка и одржавање локалних путева ",null,null,null,null,null,null,null,null,null,null,null,null,null,null,null,null,{"$f":"SUM(G34:R34)","v":0},{"$f":"F34-S34","v":0}]
["Б2-2","Поправка и одржаваање улица у насељима",1,"milan",null,null,null,null,null,null,null,null,null,null,null,null,null,null,{"$f":"SUM(G35:R35)","v":0},{"$f":"F35-S35","v":0}]
["Б2-3","Поправка и одржавање магистралних и регоналних путева на подручју општине",null,null,null,null,null,null,null,null,null,null,null,null,null,null,null,null,0,0]
["Б2-4","Изградња новог локалног пута",null,null,null,null,null,null,null,null,null,null,null,null,null,null,null,null,0,0]
["Б2-5","Изградња некатегорисаног пута",null,null,null,null,null,null,null,null,null,null,null,null,null,null,null,null,0,0]
["Б2-6","Изградања нове улице у урбаном подручју",null,null,null,null,null,null,null,null,null,null,null,null,null,null,null,null,0,0]
["Б2-7","Реконструкција локалног пута",null,null,null,null,null,null,null,null,null,null,null,null,null,null,null,null,0,0]
["Б2-8","Реконструкција некатегорисаног пута",null,null,null,null,null,null,null,null,null,null,null,null,null,null,null,null,0,0]
["Б2-9","Реконструкција улице у насељу",null,null,null,null,null,null,null,null,null,null,null,null,null,null,null,null,0,0]
["Б2-10","Асфалтирање локалног пута",null,null,null,null,null,null,null,null,null,null,null,null,null,null,null,null,0,0]
["Б2-11","Асфалтирање некатегорисаног пута",null,null,null,null,null,null,null,null,null,null,null,null,null,null,null,null,{"$f":"SUM(G44:R44)","v":0},{"$f":"F44-S44","v":0}]
["Б2-12","Асфалтирање улице у насељу",null,null,null,null,null,null,null,null,null,null,null,null,null,null,null,null,0,0]
["Total",null,null,null,{"$f":"SUBTOTAL(109,Table4[Планирани износ])","v":0},{"$f":"SUBTOTAL(109,Table4[Одобрено])","v":0},{"$f":"SUBTOTAL(109,Table4[Јануар])","v":0},{"$f":"SUBTOTAL(109,Table4[Фебруар])","v":0},{"$f":"SUBTOTAL(109,Table4[Март])","v":0},{"$f":"SUBTOTAL(109,Table4[Април])","v":0},{"$f":"SUBTOTAL(109,Table4[Мај])","v":0},{"$f":"SUBTOTAL(109,Table4[Јун])","v":0},{"$f":"SUBTOTAL(109,Table4[Јул])","v":0},{"$f":"SUBTOTAL(109,Table4[Август])","v":0},{"$f":"SUBTOTAL(109,Table4[Септембар])","v":0},{"$f":"SUBTOTAL(109,Table4[Октобар])","v":0},{"$f":"SUBTOTAL(109,Table4[Новембар])","v":0},{"$f":"SUBTOTAL(109,Table4[Децембар])","v":0},{"$f":"SUBTOTAL(109,Table4[Реализација])","v":0},{"$f":"SUBTOTAL(109,Table4[Нереализовано])","v":0}]
["В1"," Превентивно-промотивне активности из области безбедности саобраћаја","Редни број пројекта","Назив пројекта","Планирани износ","Одобрено","Јануар","Фебруар","Март","Април","Мај","Јун","Јул","Август","Септембар","Октобар","Новембар","Децембар","Реализација","Нереализовано"]
["В1-1","Израда стратегије безбедности саобраћаја",null,null,null,null,null,null,null,null,null,null,null,null,null,null,null,null,{"$f":"SUM(G48:R48)","v":0},{"$f":"F48-S48","v":0}]
["В1-2","Израда програма безбједности саобраћаја ",null,null,null,null,null,null,null,null,null,null,null,null,null,null,null,null,{"$f":"SUM(G49:R49)","v":0},{"$f":"F49-S49","v":0}]
["В1-3","Израда одлуке о безбједности саобраћаја",null,null,null,null,null,null,null,null,null,null,null,null,null,null,null,null,{"$f":"SUM(G50:R50)","v":0},{"$f":"F50-S50","v":0}]
["В1-4","Припрема и израда билтена и других извештаја о стању безбедности саобраћаја",null,null,null,null,null,null,null,null,null,null,null,null,null,null,null,null,0,0]
["В1-5","Стручно усавршавање запослених у јединицама локалне самоуправе из области безбједнсоти саобраћаја",null,null,null,null,null,null,null,null,null,null,null,null,null,null,null,null,0,0]
["В1-6","Утврђивање захтева и потреба за успостављање бициклистичког саобраћаја у приградским дијеловима  посебним освртом на безбедност бициклиста у саобраћају и дефинисање конкретних мера",null,null,null,null,null,null,null,null,null,null,null,null,null,null,null,null,0,0]
["В1-7"," Унапређење саобраћајних површина намењених кретању особа са посебним потребама за дефинисане локације",null,null,null,null,null,null,null,null,null,null,null,null,null,null,null,null,0,0]
["В1-8","Подизање нивоа безбедности у саобраћају старих лица у ЈЛС сапредлогом ургентних мера, кампањама и презентацијама",null,null,null,null,null,null,null,null,null,null,null,null,null,null,null,null,0,0]
["В1-9","Анализа капацитета и саобраћајних токова на кружним\nраскрсницама у градском и приградском подручју са конкретним предлозима за унапређењем ефикасности и безбедности свих учесника у саобраћају",null,null,null,null,null,null,null,null,null,null,null,null,null,null,null,null,0,0]
["В1-10","Сагледавање и процена алтернативних видова превоза са унапређењем саобраћајног система, предлогом мера, кампањом и презентацијом",null,null,null,null,null,null,null,null,null,null,null,null,null,null,null,null,0,0]
["В1-11","Организација стручних скупова и семинара из области безбедности саобраћаја",null,null,null,null,null,null,null,null,null,null,null,null,null,null,null,null,0,0]
["В1-12","Услуге штампања у функцији повећања безбедности саобраћаја",null,null,null,null,null,null,null,null,null,null,null,null,null,null,null,null,0,0]
["В1-13","Израда спотова који промовишу безбедност саобраћаја",null,null,null,null,null,null,null,null,null,null,null,null,null,null,null,null,0,0]
["В1-14","Израда радијских џинглова који промовишу безбедност саобраћаја",null,null,null,null,null,null,null,null,null,null,null,null,null,null,null,null,0,0]
["В1-15","Емитовање телевизијских спотова и радијских џинглова",null,null,null,null,null,null,null,null,null,null,null,null,null,null,null,null,0,0]
["В1-16","Билборди у циљу промоције безбедности саобраћаја",null,null,null,null,null,null,null,null,null,null,null,null,null,null,null,null,0,0]
["В1-17","Промотивни материјал",null,null,null,null,null,null,null,null,null,null,null,null,null,null,null,null,0,0]
["В1-18","Едукација родитеља за повећање безбедности коришћењем дечијих ауто-седишта",null,null,null,null,null,null,null,null,null,null,null,null,null,null,null,null,0,0]
["Total",null,null,null,{"$f":"SUBTOTAL(109,Table5[Планирани износ])","v":0},{"$f":"SUBTOTAL(109,Table5[Одобрено])","v":0},{"$f":"SUBTOTAL(109,Table5[Јануар])","v":0},{"$f":"SUBTOTAL(109,Table5[Фебруар])","v":0},{"$f":"SUBTOTAL(109,Table5[Март])","v":0},{"$f":"SUBTOTAL(109,Table5[Април])","v":0},{"$f":"SUBTOTAL(109,Table5[Мај])","v":0},{"$f":"SUBTOTAL(109,Table5[Јун])","v":0},{"$f":"SUBTOTAL(109,Table5[Јул])","v":0},{"$f":"SUBTOTAL(109,Table5[Август])","v":0},{"$f":"SUBTOTAL(109,Table5[Септембар])","v":0},{"$f":"SUBTOTAL(109,Table5[Октобар])","v":0},{"$f":"SUBTOTAL(109,Table5[Новембар])","v":0},{"$f":"SUBTOTAL(109,Table5[Децембар])","v":0},{"$f":"SUBTOTAL(109,Table5[Реализација])","v":0},{"$f":"SUBTOTAL(109,Table5[Нереализовано])","v":0}]
["В2","Унапређење саобраћајног васпитања и образовања","Редни број пројекта","Назив пројекта","Планирани износ","Одобрено","Јануар","Фебруар","Март","Април","Мај","Јун","Јул","Август","Септембар","Октобар","Новембар","Децембар","Реализација","Нереализовано"]
["В2-1","Финансирање пројеката невладиних и других организација у циљу унапређења\nсаобраћајног образовања",null,null,null,null,null,null,null,null,null,null,null,null,null,null,null,null,{"$f":"SUM(G68:R68)","v":0},{"$f":"F68-S68","v":0}]
["В2-2","Организација манифестација за децу предшколских, основних и средњих школа које промовишу безбедно коришћење путева и улица",null,null,null,null,null,null,null,null,null,null,null,null,null,null,null,null,{"$f":"SUM(G69:R69)","v":0},{"$f":"F69-S69","v":0}]
["В2-3","Едукација учитеља и наставника за рад са децом на саобраћајним полигонима",null,null,null,null,null,null,null,null,null,null,null,null,null,null,null,null,0,0]
["В2-4","Саобраћајна едукација деце предшколског узраста кроз саобраћајну едукативну представу",null,null,null,null,null,null,null,null,null,null,null,null,null,null,null,null,0,0]
["В2-5","Саобраћајна едукација ученика првог и другог разреда основних школа ",null,null,null,null,null,null,null,null,null,null,null,null,null,null,null,null,0,0]
["В2-6","Саобраћајна едукација ученика III-V разреда основних школа ",null,null,null,null,null,null,null,null,null,null,null,null,null,null,null,null,0,0]
["В2-7","Израда и набавка публикација за децу у предшколским установама и основним\nшколама ",null,null,null,null,null,null,null,null,null,null,null,null,null,null,null,null,0,0]
["В2-8","Образовно-васпитни материјал за децу у предшколским установама",null,null,null,null,null,null,null,null,null,null,null,null,null,null,null,null,0,0]
["В2-9","Подршка такмичењима деце основних и средњих школа за најбоље литерарне,\nликовне, музичке и друге радове који промовишу безбедно коришћење путева и улица",null,null,null,null,null,null,null,null,null,null,null,null,null,null,null,null,0,0]
["Total",null,null,null,{"$f":"SUBTOTAL(109,Table6[Планирани износ])","v":0},{"$f":"SUBTOTAL(109,Table6[Одобрено])","v":0},{"$f":"SUBTOTAL(109,Table6[Јануар])","v":0},{"$f":"SUBTOTAL(109,Table6[Фебруар])","v":0},{"$f":"SUBTOTAL(109,Table6[Март])","v":0},{"$f":"SUBTOTAL(109,Table6[Април])","v":0},{"$f":"SUBTOTAL(109,Table6[Мај])","v":0},{"$f":"SUBTOTAL(109,Table6[Јун])","v":0},{"$f":"SUBTOTAL(109,Table6[Јул])","v":0},{"$f":"SUBTOTAL(109,Table6[Август])","v":0},{"$f":"SUBTOTAL(109,Table6[Септембар])","v":0},{"$f":"SUBTOTAL(109,Table6[Октобар])","v":0},{"$f":"SUBTOTAL(109,Table6[Новембар])","v":0},{"$f":"SUBTOTAL(109,Table6[Децембар])","v":0},{"$f":"SUBTOTAL(109,Table6[Реализација])","v":0},{"$f":"SUBTOTAL(109,Table6[Нереализовано])","v":0}]
["Г","Техничко опремање и стручно оспособљавање субјеката безбједности саобраћаја","Редни број пројекта","Назив пројекта","Планирани износ","Одобрено","Јануар","Фебруар","Март","Април","Мај","Јун","Јул","Август","Септембар","Октобар","Новембар","Децембар","Реализација","Нереализовано"]
["Г1","Опремање субјеката безбједности саобраћаја специфичном техничком\nопремом\n",null,null,null,null,null,null,null,null,null,null,null,null,null,null,null,null,{"$f":"SUM(G79:R79)","v":0},{"$f":"F79-S79","v":0}]
["Г2","Обука субјеката безбједности саобраћаја",null,null,null,null,null,null,null,null,null,null,null,null,null,null,null,null,{"$f":"SUM(G80:R80)","v":0},{"$f":"F80-S80","v":0}]
["Total",null,null,null,{"$f":"SUBTOTAL(109,Table7[Планирани износ])","v":0},{"$f":"SUBTOTAL(109,Table7[Одобрено])","v":0},{"$f":"SUBTOTAL(109,Table7[Јануар])","v":0},{"$f":"SUBTOTAL(109,Table7[Фебруар])","v":0},{"$f":"SUBTOTAL(109,Table7[Март])","v":0},{"$f":"SUBTOTAL(109,Table7[Април])","v":0},{"$f":"SUBTOTAL(109,Table7[Мај])","v":0},{"$f":"SUBTOTAL(109,Table7[Јун])","v":0},{"$f":"SUBTOTAL(109,Table7[Јул])","v":0},{"$f":"SUBTOTAL(109,Table7[Август])","v":0},{"$f":"SUBTOTAL(109,Table7[Септембар])","v":0},{"$f":"SUBTOTAL(109,Table7[Октобар])","v":0},{"$f":"SUBTOTAL(109,Table7[Новембар])","v":0},{"$f":"SUBTOTAL(109,Table7[Децембар])","v":0},{"$f":"SUBTOTAL(109,Table7[Реализација])","v":0},{"$f":"SUBTOTAL(109,Table7[Одобрено])","v":0}]

{"sheet":"PREGLED","index":1,"n_rows":11,"n_cols":18,"rows_kept":11,"cut":false,"hidden":false,"merged":[[2,4,2,15]]}
[null,null,null,null,null,null,"ТАБЕЛАРНИ ПРИКАЗ СТРУКТУРЕ СРЕДСТАВА"]
[]
[null,null,"Планирани износ","Одобрено","Реализација по мјесецима",null,null,null,null,null,null,null,null,null,null,null,"Реализација","Нереализовано"]
[null,null,"Укупно","Укупно","Јануар","Фебруар","Март","Април","Мај","Јун","Јул","Август","Септембар","Октобар","Новембар","Децембар","Укупно","Укупно"]
["A","Рад савјета за безбједност саобраћаја",{"$f":"'OSNOVNA TABELA'!E10","v":0},{"$f":"'OSNOVNA TABELA'!F10","v":0},{"$f":"'OSNOVNA TABELA'!G10","v":0},{"$f":"'OSNOVNA TABELA'!H10","v":0},{"$f":"'OSNOVNA TABELA'!I10","v":0},{"$f":"'OSNOVNA TABELA'!J10","v":0},{"$f":"'OSNOVNA TABELA'!K10","v":0},{"$f":"'OSNOVNA TABELA'!L10","v":0},{"$f":"'OSNOVNA TABELA'!M10","v":0},{"$f":"'OSNOVNA TABELA'!N10","v":0},{"$f":"'OSNOVNA TABELA'!O10","v":0},{"$f":"'OSNOVNA TABELA'!P10","v":0},{"$f":"'OSNOVNA TABELA'!Q10","v":0},{"$f":"'OSNOVNA TABELA'!R10","v":0},{"$f":"'OSNOVNA TABELA'!S10","v":0},{"$f":"'OSNOVNA TABELA'!T10","v":0}]
["Б1","Унапређење путне инфраструктуре ",{"$f":"'OSNOVNA TABELA'!E32","v":0},{"$f":"'OSNOVNA TABELA'!F32","v":0},{"$f":"'OSNOVNA TABELA'!G32","v":0},{"$f":"'OSNOVNA TABELA'!H32","v":0},{"$f":"'OSNOVNA TABELA'!I32","v":0},{"$f":"'OSNOVNA TABELA'!J32","v":0},{"$f":"'OSNOVNA TABELA'!K32","v":0},{"$f":"'OSNOVNA TABELA'!L32","v":0},{"$f":"'OSNOVNA TABELA'!M32","v":0},{"$f":"'OSNOVNA TABELA'!N32","v":0},{"$f":"'OSNOVNA TABELA'!O32","v":0},{"$f":"'OSNOVNA TABELA'!P32","v":0},{"$f":"'OSNOVNA TABELA'!Q32","v":0},{"$f":"'OSNOVNA TABELA'!R32","v":0},{"$f":"'OSNOVNA TABELA'!S32","v":0},{"$f":"'OSNOVNA TABELA'!T32","v":0}]
["Б2","Поправљање саобраћајне инфраструктуре",{"$f":"'OSNOVNA TABELA'!E46","v":0},{"$f":"'OSNOVNA TABELA'!F46","v":0},{"$f":"'OSNOVNA TABELA'!G46","v":0},{"$f":"'OSNOVNA TABELA'!H46","v":0},{"$f":"'OSNOVNA TABELA'!I46","v":0},{"$f":"'OSNOVNA TABELA'!J46","v":0},{"$f":"'OSNOVNA TABELA'!K46","v":0},{"$f":"'OSNOVNA TABELA'!L46","v":0},{"$f":"'OSNOVNA TABELA'!M46","v":0},{"$f":"'OSNOVNA TABELA'!N46","v":0},{"$f":"'OSNOVNA TABELA'!O46","v":0},{"$f":"'OSNOVNA TABELA'!P46","v":0},{"$f":"'OSNOVNA TABELA'!Q46","v":0},{"$f":"'OSNOVNA TABELA'!R46","v":0},{"$f":"'OSNOVNA TABELA'!S46","v":0},{"$f":"'OSNOVNA TABELA'!T46","v":0}]
["В1"," Превентивно-промотивне активности из области безбедности саобраћаја",{"$f":"'OSNOVNA TABELA'!E66","v":0},{"$f":"'OSNOVNA TABELA'!F66","v":0},{"$f":"'OSNOVNA TABELA'!G66","v":0},{"$f":"'OSNOVNA TABELA'!H66","v":0},{"$f":"'OSNOVNA TABELA'!I66","v":0},{"$f":"'OSNOVNA TABELA'!J66","v":0},{"$f":"'OSNOVNA TABELA'!K66","v":0},{"$f":"'OSNOVNA TABELA'!L66","v":0},{"$f":"'OSNOVNA TABELA'!M66","v":0},{"$f":"'OSNOVNA TABELA'!N66","v":0},{"$f":"'OSNOVNA TABELA'!O66","v":0},{"$f":"'OSNOVNA TABELA'!P66","v":0},{"$f":"'OSNOVNA TABELA'!Q66","v":0},{"$f":"'OSNOVNA TABELA'!R66","v":0},{"$f":"'OSNOVNA TABELA'!S66","v":0},{"$f":"'OSNOVNA TABELA'!T66","v":0}]
["В2","Унапређење саобраћајног васпитања и образовања",{"$f":"'OSNOVNA TABELA'!E77","v":0},{"$f":"'OSNOVNA TABELA'!F77","v":0},{"$f":"'OSNOVNA TABELA'!G77","v":0},{"$f":"'OSNOVNA TABELA'!H77","v":0},{"$f":"'OSNOVNA TABELA'!I77","v":0},{"$f":"'OSNOVNA TABELA'!J77","v":0},{"$f":"'OSNOVNA TABELA'!K77","v":0},{"$f":"'OSNOVNA TABELA'!L77","v":0},{"$f":"'OSNOVNA TABELA'!M77","v":0},{"$f":"'OSNOVNA TABELA'!N77","v":0},{"$f":"'OSNOVNA TABELA'!O77","v":0},{"$f":"'OSNOVNA TABELA'!P77","v":0},{"$f":"'OSNOVNA TABELA'!Q77","v":0},{"$f":"'OSNOVNA TABELA'!R77","v":0},{"$f":"'OSNOVNA TABELA'!S77","v":0},{"$f":"'OSNOVNA TABELA'!T77","v":0}]
["Г","Техничко и стручно опремање субјеката безбједности саобраћаја",{"$f":"'OSNOVNA TABELA'!E81","v":0},{"$f":"'OSNOVNA TABELA'!F81","v":0},{"$f":"'OSNOVNA TABELA'!G81","v":0},{"$f":"'OSNOVNA TABELA'!H81","v":0},{"$f":"'OSNOVNA TABELA'!I81","v":0},{"$f":"'OSNOVNA TABELA'!J81","v":0},{"$f":"'OSNOVNA TABELA'!K81","v":0},{"$f":"'OSNOVNA TABELA'!L81","v":0},{"$f":"'OSNOVNA TABELA'!M81","v":0},{"$f":"'OSNOVNA TABELA'!N81","v":0},{"$f":"'OSNOVNA TABELA'!O81","v":0},{"$f":"'OSNOVNA TABELA'!P81","v":0},{"$f":"'OSNOVNA TABELA'!Q81","v":0},{"$f":"'OSNOVNA TABELA'!R81","v":0},{"$f":"'OSNOVNA TABELA'!S81","v":0},{"$f":"'OSNOVNA TABELA'!T81","v":0}]
[null,null,{"$f":"SUM(C5:C10)","v":0},0,0,0,0,0,0,0,0,0,0,0,0,0,0,0]